[Event "I Liga Centralne Srbije"]
[Site "Bajina Bašta, Serbia"]
[Date "2020.10.17"]
[Round "11.2"]
[White "Bozic, Milan"]
[Black "Solomunovic, Igor"]
[Result "0-1"]
[ECO "D37"]
[WhiteElo "2270"]
[BlackElo "2355"]
[Annotator "Knez"]
[PlyCount "101"]
[EventDate "2020.??.??"]
[TimeControl "90"]
[WhiteClock "0:01:13"]
[BlackClock "0:09:38"]

1. c4 {[%emt 0:00:00]} Nf6 {[%emt 0:00:00]} 2. Nc3 {[%emt 0:00:00]} e6 {
[%emt 0:00:00]} 3. d4 {[%emt 0:00:00]} d5 {[%emt 0:00:00]} 4. Nf3 {[%emt 0:00:
00]} Be7 {[%emt 0:00:00]} 5. Bf4 {[%emt 0:00:00]} O-O {[%emt 0:00:00]} 6. Qb3 {
[%emt 0:00:00]} c5 {[%emt 0:00:00]} 7. Rd1 {[%emt 0:00:00]} cxd4 {[%emt 0:00:
00]} 8. Nxd4 {[%emt 0:00:00]} Na6 {[%emt 0:00:00]} 9. a3 {[%emt 0:00:00]} Nc5 {
[%emt 0:00:00]} 10. Qc2 {[%emt 0:00:00]} Nce4 {[%emt 0:00:00]} 11. Nxe4 {
[%emt 0:00:00]} Nxe4 {[%emt 0:00:00]} 12. f3 {[%emt 0:00:00]} Nf6 {[%emt 0:00:
00]} 13. cxd5 {[%emt 0:00:00]} Nxd5 {[%emt 0:00:00]} 14. Bc1 {[%emt 0:00:00]}
Qb6 {[%emt 0:00:00]} 15. e4 {[%emt 0:00:00]} Bf6 {[%emt 0:00:00]} 16. Qf2 {
[%emt 0:00:00]} Ne7 {[%emt 0:00:00]} 17. Nb5 {[%emt 0:00:00]} Qxf2+ {[%emt 0:
00:00]} 18. Kxf2 {[%emt 0:00:00]} Nc6 {[%emt 0:00:00]} 19. b3 {[%emt 0:00:00]}
a6 {[%emt 0:00:00]} 20. Nd6 {[%emt 0:00:00]} Rd8 {[%emt 0:00:00]} 21. Ke1 {
[%emt 0:00:00]} Nd4 {[%emt 0:00:00]} 22. Nc4 {[%emt 0:00:00]} b5 {[%emt 0:00:
00]} 23. Na5 {[%emt 0:00:00]} Bh4+ {[%emt 0:00:00]} 24. g3 {[%emt 0:00:00]}
Nxf3+ {[%emt 0:00:00]} 25. Ke2 {[%emt 0:00:00]} Rxd1 {[%emt 0:00:00]} 26. Kxd1
{[%emt 0:00:00]} Bd8 {[%emt 0:00:00]} 27. b4 {[%emt 0:00:00]} Bxa5 {[%emt 0:00:
00]} 28. bxa5 {[%emt 0:00:00]} Bb7 {[%emt 0:00:00]} 29. Bd3 {[%emt 0:00:00]}
Rd8 {[%emt 0:00:00]} 30. Ke2 {[%emt 0:00:00]} Nd4+ {[%emt 0:00:35]} 31. Ke3 {
[%emt 0:00:00]} Nb3 {[%emt 0:00:00]} 32. Bb2 {[%emt 0:00:00]} Nxa5 {[%emt 0:00:
10]} 33. Rc1 {[%emt 0:00:00]} Nc6 {[%emt 0:00:00]} 34. g4 {[%emt 0:00:00]} f6 {
[%emt 0:00:00]} 35. h4 {[%emt 0:00:00]} Rd7 {[%emt 0:00:00]} 36. g5 {[%emt 0:
00:00]} fxg5 {[%emt 0:00:12]} 37. hxg5 {[%emt 0:00:00]} Ne7 {[%emt 0:00:00]}
38. Bb1 {[%emt 0:00:00]} Ng6 {[%emt 0:00:01]} 39. Ba2 {[%emt 0:00:00]} Nf8 {
[%emt 0:00:00]} 40. Rf1 {[%emt 0:00:00]} h6 {[%emt 0:00:00]} 41. gxh6 {[%emt 0:
00:00]} gxh6 {[%emt 0:00:00]} 42. Rf6 {[%emt 0:00:00]} Rg7 {[%emt 0:00:00]} 43.
Rf2 {[%emt 0:00:00]} Rg4 {[%emt 0:00:00]} 44. Bb1 {[%emt 0:00:00]} h5 {[%emt 0:
00:00]} 45. Rh2 {[%emt 0:00:00]} h4 {[%emt 0:00:00]} 46. Bf6 {[%emt 0:00:00]}
Ng6 {[%emt 0:00:00]} 47. e5 {[%emt 0:00:00]} Nf4 {[%emt 0:00:00]} 48. Ba2 {
[%emt 0:00:00]} Bd5 {[%emt 0:00:00]} 49. Bb1 {[%emt 0:00:00]} h3 {[%emt 0:00:
00]} 50. Rc2 {[%emt 0:00:00]} Bc4 {[%emt 0:00:00]} 51. Kd4 {[%emt 0:00:13]} 0-1

[Event "I Liga Centralne Srbije"]
[Site "Bajina Bašta, Serbia"]
[Date "2020.10.17"]
[Round "11.2"]
[White "Rabrenovic, Vladan"]
[Black "Popovic, Nenad"]
[Result "0-1"]
[ECO "D55"]
[WhiteElo "2302"]
[BlackElo "2249"]
[Annotator "Knez"]
[PlyCount "76"]
[EventDate "2020.??.??"]
[TimeControl "90"]

1. d4 {[%emt 10:05:11]} d5 {[%emt 0:08:25]} 2. c4 {[%emt 0:00:17]} e6 {[%emt 0:
00:05]} 3. Nc3 {[%emt 0:00:05]} Nf6 {[%emt 0:00:03]} 4. Bg5 {[%emt 0:00:15]}
Nbd7 {[%emt 0:00:10]} 5. e3 {[%emt 0:00:08]} Be7 {[%emt 0:00:34]} 6. Nf3 {
[%emt 0:00:37]} O-O {[%emt 0:00:31]} 7. Rc1 {[%emt 0:00:07]} b6 {[%emt 0:02:13]
} 8. cxd5 {[%emt 0:05:13]} exd5 {[%emt 0:09:31]} 9. Bd3 {[%emt 0:00:10]} Bb7 {
[%emt 0:00:16]} 10. Qc2 {[%emt 0:03:51]} c5 {[%emt 0:03:09]} 11. O-O {[%emt 0:
00:35]} h6 {[%emt 0:02:02]} 12. Bh4 {[%emt 0:06:20]} Re8 {[%emt 0:03:49]} 13.
Rfd1 {[%emt 0:05:48]} a6 {[%emt 0:10:54]} 14. a4 {[%emt 0:09:59]} Qc7 {[%emt 0:
01:45]} 15. Bf5 {[%emt 0:07:50]} Rad8 {[%emt 0:14:58]} 16. Ne2 {[%emt 0:25:02]}
c4 {[%emt 0:07:49]} 17. Nc3 {[%emt 0:03:57]} Bc6 {[%emt 0:04:49]} 18. b3 {
[%emt 0:05:37]} b5 {[%emt 0:02:17]} 19. axb5 {[%emt 0:00:07]} axb5 {[%emt 0:01:
28]} 20. bxc4 {[%emt 0:00:19]} bxc4 {[%emt 0:00:36]} 21. Ne5 {[%emt 0:00:06]}
Rb8 {[%emt 0:12:17]} 22. Bg3 {[%emt 0:05:37]} Bd6 {[%emt 0:02:02]} 23. Nxd7 {
[%emt 0:04:01]} Bxd7 {[%emt 0:02:06]} 24. Bh4 {[%emt 0:00:43]} g5 {[%emt 0:01:
28]} 25. Bg3 {[%emt 0:00:02]} Bxg3 {[%emt 0:00:37]} 26. hxg3 {[%emt 0:00:02]}
Rb3 {[%emt 0:00:51]} 27. Bxd7 {[%emt 0:04:25]} Qxd7 {[%emt 0:00:12]} 28. Ra1 {
[%emt 0:02:04]} Reb8 {[%emt 0:01:49]} 29. Ra2 {[%emt 0:00:01]} Qg4 {[%emt 0:00:
38]} 30. Rda1 {[%emt 0:00:37]} Kg7 {[%emt 0:00:09]} 31. Ra5 {[%emt 0:00:52]}
Rb2 {[%emt 0:09:07]} 32. Qd1 {[%emt 0:00:01]} R8b3 {[%emt 0:00:32]} 33. Qe1 {
[%emt 0:03:25]} Rxc3 {[%emt 0:01:28]} 34. Qxc3 {[%emt 0:00:55]} Rxf2 {[%emt 0:
00:02]} 35. Qe1 {[%emt 0:00:52]} Re2 {[%emt 0:01:21]} 36. Qd1 {[%emt 0:00:07]}
Ne4 {[%emt 0:00:10]} 37. Qf1 {[%emt 0:00:44]} Nxg3 {[%emt 0:00:55]} 38. Qf3 {
[%emt 0:00:48]} Qh4 {[%emt 0:00:02]} 0-1

[Event "I Liga Centralne Srbije"]
[Site "Bajina Bašta, Serbia"]
[Date "2020.10.17"]
[Round "11.3"]
[White "Celik, Hasan Huseyin"]
[Black "Budisavljevic, Luka"]
[Result "0-1"]
[ECO "D31"]
[WhiteElo "1970"]
[BlackElo "2454"]
[Annotator "Knez"]
[PlyCount "60"]
[EventDate "2020.??.??"]
[TimeControl "90"]
[WhiteClock "0:36:10"]
[BlackClock "0:24:50"]

1. d4 {[%emt 0:00:00]} d5 {[%emt 0:00:00]} 2. c4 {[%emt 0:00:00]} e6 {[%emt 0:
00:00]} 3. cxd5 {[%emt 0:00:00]} exd5 {[%emt 0:00:00]} 4. Nc3 {[%emt 0:00:00]}
c6 {[%emt 0:00:00]} 5. Qc2 {[%emt 0:00:00]} Bd6 {[%emt 0:00:00]} 6. Nf3 {
[%emt 0:00:00]} h6 {[%emt 0:00:00]} 7. e4 {[%emt 0:00:00]} dxe4 {[%emt 0:00:00]
} 8. Nxe4 {[%emt 0:00:00]} Nf6 {[%emt 0:00:00]} 9. Nxd6+ {[%emt 0:00:00]} Qxd6
{[%emt 0:00:00]} 10. Be3 {[%emt 0:00:00]} Be6 {[%emt 0:00:00]} 11. Be2 {
[%emt 0:00:00]} Nbd7 {[%emt 0:00:00]} 12. O-O {[%emt 0:00:00]} O-O {[%emt 0:00:
00]} 13. Rfe1 {[%emt 0:00:00]} Rfe8 {[%emt 0:00:00]} 14. a3 {[%emt 0:00:00]}
Bd5 {[%emt 0:00:00]} 15. h3 {[%emt 0:00:00]} Re6 {[%emt 0:00:00]} 16. Nd2 {
[%emt 0:00:00]} Rae8 {[%emt 0:00:00]} 17. Bd3 {[%emt 0:00:00]} Nh5 {[%emt 0:00:
00]} 18. Bh7+ {[%emt 0:00:00]} Kh8 {[%emt 0:00:00]} 19. Bf5 {[%emt 0:00:00]}
R6e7 {[%emt 0:00:00]} 20. Nc4 {[%emt 0:00:00]} Bxc4 {[%emt 0:00:00]} 21. Qxc4 {
[%emt 0:00:00]} Nb6 {[%emt 0:00:00]} 22. Qb3 {[%emt 0:00:00]} Nf4 {[%emt 0:00:
00]} 23. Bg4 {[%emt 0:00:00]} Qg6 {[%emt 0:00:00]} 24. Bd2 {[%emt 0:00:00]}
Rxe1+ {[%emt 0:00:00]} 25. Rxe1 {[%emt 0:00:00]} Rxe1+ {[%emt 0:00:00]} 26.
Bxe1 {[%emt 0:00:00]} Qe4 {[%emt 0:00:00]} 27. Qf3 {[%emt 0:00:00]} Qxe1+ {
[%emt 0:00:00]} 28. Kh2 {[%emt 0:00:00]} Nfd5 {[%emt 0:00:00]} 29. Qxf7 {
[%emt 0:00:00]} Qe7 {[%emt 0:00:00]} 30. Qg6 {[%emt 0:00:00]} Nf6 {[%emt 0:00:
00]} 0-1

[Event "I Liga Centralne Srbije"]
[Site "Bajina Bašta, Serbia"]
[Date "2020.10.17"]
[Round "11.3"]
[White "Marinkovic, Ivan"]
[Black "Jovanovic, Dusan D"]
[Result "1/2-1/2"]
[ECO "A30"]
[WhiteElo "2451"]
[BlackElo "2412"]
[Annotator "Knez"]
[PlyCount "20"]
[EventDate "2020.??.??"]
[TimeControl "90"]
[WhiteClock "1:34:12"]
[BlackClock "1:34:35"]

1. Nf3 {[%emt 0:00:00]} Nf6 {[%emt 0:00:00]} 2. g3 {[%emt 0:00:00]} b6 {
[%emt 0:00:00]} 3. Bg2 {[%emt 0:00:00]} Bb7 {[%emt 0:00:00]} 4. O-O {[%emt 0:
00:00]} e6 {[%emt 0:00:00]} 5. b3 {[%emt 0:00:00]} Be7 {[%emt 0:00:00]} 6. Bb2
{[%emt 0:00:00]} O-O {[%emt 0:00:00]} 7. c4 {[%emt 0:00:00]} c5 {[%emt 0:00:00]
} 8. d3 {[%emt 0:00:00]} d6 {[%emt 0:00:00]} 9. Nbd2 {[%emt 0:00:00]} Nbd7 {
[%emt 0:00:00]} 10. e3 {[%emt 0:00:00]} a6 {[%emt 0:00:03]} 1/2-1/2